Cogmind - Beta 11 X9 @@@ ROGUE MODE // 2022.01.27 @ 17:09:55 Player: LU-1G1 Result: Destroyed by G-47 Trooper with Particle Gun Performance ------------- Evolutions (0) 0 Regions Visited (2) 400 Robots Destroyed (10) 50 Value Destroyed (156) 156 Prototype IDs (0) 0 Alien Tech Used (0) 0 Bonus (0) 0 TOTAL SCORE: 606 Bonus ------- None Cogmind --------- Core Integrity 0/250 Matter 300/300 Energy 100/100 System Corruption 1% Temperature Warning (331) Movement Core (700) Ox13 Location -10/Mines Parts ------- > --- POWER (1) -------- (None) > --- PROPULSION (2) --- Light Treads > --- UTILITY (2) ------ High-capacity Storage Unit > --- WEAPON (2) ------- (None) > --- INVENTORY (20) --- Light Ion Engine Light Treads Improved Treads Improved Treads Improved Treads Improved Treads Small Storage Unit Medium Storage Unit Weight Redist. System Hardened Light Armor Plating Hardened Light Armor Plating Hardened Light Armor Plating EM Pulse Gun Beam Rifle Beam Rifle Light Assault Rifle Light Assault Rifle Grenade Launcher Peak State ------------ > --- POWER ------------ Light Ion Engine > --- PROPULSION ------- Light Treads Light Treads > --- UTILITY ---------- High-capacity Storage Unit Hardened Light Armor Plating > --- WEAPON ----------- Beam Rifle Beam Rifle > --- INVENTORY -------- Improved Treads Improved Treads Improved Treads Improved Treads Small Storage Unit Weight Redist. System Hardened Light Armor Plating Hardened Light Armor Plating Beam Rifle Beam Rifle Grenade Launcher [Rating: 12] Favorites ----------- Power Light Ion Engine Engine Light Ion Engine Propulsion Light Treads Treads Light Treads Flight Unit VTOL Module Utility High-capacity Storage Unit Device Weight Redist. System Storage High-capacity Storage Unit Protection Hardened Light Armor Plating Weapon Beam Rifle Energy Gun Beam Rifle Ballistic Gun Light Assault Rifle Launcher Grenade Launcher Build | -11 -10 -10 ------- Run | Scr Mat Min Slots Evolved . | . . . Power . | . . . Propulsion . | . . . Utility . | . . . Weapon . | . . . Parts Attached 20 | 6 14 . Power 2 | 1 1 . Engine 2 | 1 1 . Core . | . . . Reactor . | . . . Propulsion 6 | 2 4 . Treads 4 | 2 2 . Leg . | . . . Wheel . | . . . Hover . | . . . Flight 2 | . 2 . Utility 4 | 1 3 . Device 1 | . 1 . Storage 2 | 1 1 . Processor . | . . . Hackware . | . . . Protection 1 | . 1 . Artifact . | . . . Weapon 8 | 2 6 . Energy Gun 3 | . 3 . Energy Cannon . | . . . Ballistic Gun 3 | 2 1 . Ballistic Cannon . | . . . Launcher 2 | . 2 . Special Weapon . | . . . Impact Weapon . | . . . Slashing Weapon . | . . . Piercing Weapon . | . . . Special Melee Weapon . | . . . Unidentified Prototypes . | . . . Parts Lost 5 | . . 5 Power 1 | . . 1 Propulsion 1 | . . 1 Utility 1 | . . 1 Weapon 2 | . . 2 Highest Loss Streak 5 | . . 5 Average Slot Usage (%) 96 | . 97 95 Engine 13 | . 13 12 Treads 26 | . 25 27 Flight 1 | . 2 . Device 1 | . 1 . Storage 14 | . 14 14 Protection 11 | . 10 13 Energy Gun 25 | . 24 26 Ballistic Gun 2 | . 3 . Naked Turns . | . . . Heaviest Build 54 | 10 54 54 Greatest Support 46 | 40 46 40 Greatest Overweight (x) 2 | 1 2 2 Average Overweight (x) . | . . 1 Largest Inventory Capacity 20 | 8 20 20 Average Capacity 17 | 7 17 20 Most Carried 19 | 6 19 18 Average Carried 14 | 2 14 18 Final Capacity 20 | 8 20 20 Final Carried 18 | 6 18 18 Class Distribution -------------------- 93% | Mutant 6% | Sprinter Dominant Class ---------------- Mutant | -10/Materials Mutant | -10/Mines Resources | -11 -10 -10 ----------- Run | Scr Mat Min Matter Collected 458 | 237 162 59 Remotely . | . . . Salvage Created 247 | . 170 77 Parts 9 | . 9 . Haulers Intercepted 1 | . 1 . Recyclers Shooed 1 | . 1 . Parts Field Recycled . | . . . Retrieved Matter . | . . . Parts Self-Destructed . | . . . Prevented . | . . . Kills | -11 -10 -10 ------- Run | Scr Mat Min Combat Hostiles Destroyed 8 | . 6 2 Guns 2 | . 1 1 AOE 5 | . 5 . Classes Destroyed 4 | . 3 1 Hauler 1 | . 1 . Recycler 1 | . 1 . Swarmer 6 | . 6 . Grunt 2 | . . 2 Best Kill Streak 3 | . 3 1 Combat Bots Only 3 | . 3 1 Max Kills in Single Turn 3 | . 3 1 Gunslinging . | . . . Exploded 3 | . 3 . Melee . | . . . Uniques/NPCs Destroyed . | . . . Combat | -11 -10 -10 -------- Run | Scr Mat Min Damage Taken 702 | . 55 647 Core 263 | . 16 247 Absorbed by Shields . | . . . Core Remaining (%) 100 | 100 . . Volleys Fired 26 | . 8 18 Largest 2 | . 2 2 Hottest 112 | . 112 112 Shots Fired 44 | . 16 28 Gun 42 | . 14 28 Cannon . | . . . Launcher 2 | . 2 . Special . | . . . Kinetic 1 | . 1 . Thermal 41 | . 13 28 Explosive 2 | . 2 . Electromagnetic . | . . . Robot Hit Streak 7 | . 7 3 Robot Miss Streak 4 | . 1 4 Penetration Max . | . . . Secondary Targets . | . . . Shots Hit Robots 25 | . 10 15 Core Hits 14 | . 9 5 Critical Kills . | . . . Critical Parts Destroyed . | . . . Critical Strikes 2 | . 1 1 Burn 2 | . 1 1 Melee Attacks . | . . . Impact . | . . . Slashing . | . . . Piercing . | . . . Sneak Attacks . | . . . Combat Hostiles . | . . . Follow-up Attacks . | . . . Damage Inflicted 673 | . 425 248 Guns 375 | . 129 246 Cannons . | . . . Explosions 294 | . 294 . Melee . | . . . Ramming 4 | . 2 2 Kinetic . | . . . Thermal 375 | . 129 246 Explosive 294 | . 294 . Electromagnetic . | . . . Impact . | . . . Slashing . | . . . Piercing . | . . . Highest Corruption 1 | . 1 1 Average Corruption 1 | . 1 1 Corruption Purged . | . . . Effects 4 | . 2 2 Message Errors 1 | . 1 . Energy Discharges 1 | . . 1 Data Loss (minor) 2 | . 1 1 Overload Shots . | . . . Overflow Damage 3 | . 3 . Projectiles . | . . . Explosions 3 | . 3 . Melee . | . . . Knockbacks . | . . . Impact . | . . . Kinetic . | . . . Secondary . | . . . Self-Inflicted Damage . | . . . Shots . | . . . Rammed 3 | . 1 2 Targets Rammed 3 | . 1 2 Kicked . | . . . Crushed . | . . . Highest Temperature 674 | . 198 674 Average Temperature 236 | . 72 331 Received Heat Transfer 318 | . . 318 Effects 27 | . . 27 Shutdowns 1 | . . 1 Energy Bleed 1 | . . 1 Interference 3 | . . 3 Matter Decay 1 | . . 1 Short Circuit 3 | . . 3 Damage (minor) 2 | . . 2 Damage (major) 14 | . . 14 Damage (core) 2 | . . 2 Siege Activations . | . . . Robots Corrupted . | . . . Combat Hostiles . | . . . Parts Fried . | . . . Impact Corruptions . | . . . Robots Melted 1 | . . 1 Combat Hostiles 1 | . . 1 Parts Melted 4 | . 2 2 Heat Transferred 1110 | . 407 703 Parts Sabotaged . | . . . Parts Stolen . | . . . Parts Stripped . | . . . Power Chain Reactions . | . . . Missiles Intercepted . | . . . Alert | -11 -10 -10 ------- Run | Scr Mat Min Peak Influence 153 | . 153 40 Initial . | . . . Average 28 | . 38 7 Maximum Alert Level . | . . . Low Security (%) 100 | 100 100 100 Level 1 . | . . . Level 2 . | . . . Level 3 . | . . . Level 4 . | . . . Level 5 . | . . . High Security . | . . . Max Security . | . . . Squads Dispatched 1 | . 1 . Investigation . | . . . Extermination . | . . . Reinforcement 1 | . 1 . Assault . | . . . Garrison . | . . . Intercept . | . . . Construction Impeded . | . . . Haulers Reinforced . | . . . Active Scanning Responses . | . . . Cargo Convoy Interrupts . | . . . Stealth | -11 -10 -10 --------- Run | Scr Mat Min Distress Signals . | . . . Communications Jammed . | . . . Distress Signals . | . . . Times Spotted 12 | . 9 3 Peak Tracking Total 3 | . 3 2 Tactical Retreats . | . . . Traps | -11 -10 -10 ------- Run | Scr Mat Min Traps Triggered . | . . . Indirectly . | . . . Trap Hack Attempts . | . . . Triggered . | . . . Disarmed . | . . . Reprogrammed . | . . . Reused . | . . . Traps Extracted . | . . . Installed . | . . . Triggered . | . . . Machines | -11 -10 -10 ---------- Run | Scr Mat Min Machines Disabled 2 | . . 2 Max in Single Turn 1 | . . 1 Machines Sabotaged . | . . . Garrisons Compromised . | . . . Overloaded Fab Kills . | . . . Hacking | -11 -10 -10 --------- Run | Scr Mat Min Machines Accessed 5 | . 5 . Terminals 5 | . 5 . Fabricators . | . . . Repair Stations . | . . . Recycling Units . | . . . Scanalyzers . | . . . Garrison Access . | . . . Total Hacks 10 | . 10 . Successful 3 | . 3 . Failed 7 | . 7 . Catastrophic 1 | . 1 . Database Lockouts . | . . . Manual 4 | . 4 . Terminals 10 | . 10 . Fabricators . | . . . Repair Stations . | . . . Recycling Units . | . . . Scanalyzers . | . . . Garrison Access . | . . . Terminal Hacks 3 | . 3 . Branch Access Points 1 | . 1 . Recall Reinforcements 1 | . 1 . Hauler Manifests 1 | . 1 . Fabricator Hacks . | . . . Repair Station Hacks . | . . . Recycling Unit Hacks . | . . . Scanalyzer . | . . . Garrison Access Hacks . | . . . Unauthorized Hacks . | . . . Terminals . | . . . Fabricators . | . . . Repair Stations . | . . . Recycling Units . | . . . Scanalyzers . | . . . Garrison Access . | . . . Data Cores Recovered . | . . . Used . | . . . Hacking Detections 5 | . 5 . Full Trace Events 1 | . 1 . Feedback Events 1 | . 1 . Corruption 1 | . 1 . Feedback Blocked . | . . . Robot Schematics Acquired . | . . . Robots Built . | . . . Authchips . | . . . Time . | . . . Total Robot Build Rating . | . . . Part Schematics Acquired . | . . . Parts Built . | . . . Authchips . | . . . Time . | . . . Total Part Build Rating . | . . . Parts Repaired . | . . . Time . | . . . Parts Recycled . | . . . Recycled Matter . | . . . Retrieved Matter . | . . . Retrieved Components . | . . . Parts Scanalyzed . | . . . Part Schematics Acquired . | . . . Parts Damaged . | . . . Bothacking | -11 -10 -10 ------------ Run | Scr Mat Min Used RIF Installer . | . . . Robots Hacked . | . . . Non-combat . | . . . Combat . | . . . Robot Hacks Applied . | . . . Relay Couplers Released . | . . . Fabnet Peak Effective % . | . . . Robots Rewired . | . . . Allies Hacked . | . . . Hacks Repelled . | . . . Allies | -11 -10 -10 -------- Run | Scr Mat Min Total Allies . | . . . Largest Group . | . . . Highest-Rated Group . | . . . Highest-Rated Ally . | . . . Total Orders . | . . . Ally Attacks . | . . . Total Damage . | . . . Kills . | . . . Allies Corrupted . | . . . Allies Melted . | . . . Intel | -11 -10 -10 ------- Run | Scr Mat Min Robot Analysis Total . | . . . Derelict Logs Recovered . | . . . Drone Launches . | . . . Drone Recoveries . | . . . Exploration | -11 -10 -10 ------------- Run | Scr Mat Min Turns Passed 1266 | 89 862 315 Spaces Moved 631 | 49 479 103 Core 4 | 4 . . Treads 471 | 45 323 103 Legs . | . . . Wheels . | . . . Hover . | . . . Flight 156 | . 156 . Fastest Speed 32 | 50 32 240 Average Speed 176 | 154 164 241 Slowest Speed 320 | 160 240 320 Overloaded Moves . | . . . Propulsion Burnouts . | . . . Robots Hopped . | . . . Cave-ins Triggered . | . . . Exploration Rate (%) 32 | 4 60 34 Regions Visited 2 Branch Regions 1 Pre-discovered Areas . | . . . Known Exits Taken 1 | . 1 . Unknown Exits Taken 1 | 1 . . Scrap Searched . | . . . Spaces Dug . | . . . Terrain Destroyed 14 | . 14 . Melee . | . . . Projectile . | . . . AOE 14 | . 14 . Terrain Rammed . | . . . Walls Destroyed . | . . . Machines Disabled . | . . . Actions | -11 -10 -10 --------- Run | Scr Mat Min Total 734 | 60 541 133 Wait 10 | . . 10 Move 629 | 48 478 103 Hop . | . . . Pick Up 26 | 6 20 . Fast Attach 15 | 6 9 . Attach 1 | . 1 . Detach 4 | . 4 . Swap 4 | . 4 . Drop 16 | . 16 . Fire 26 | . 8 18 Melee . | . . . Ram 2 | . . 2 Kick . | . . . Crush 1 | . 1 . Escape Stasis . | . . . Rewire . | . . . Trap . | . . . Miscellaneous . | . . . Route ------- -11/Scrapyard -10/Materials (discovered 3 exits: [*Mat x2] / *Min) -10/Mines History --------- Turn | Location | Event 17 | -11/Scrapyard | Discovered new exit (range 14) 90 | -11/Scrapyard | Entered Materials 137 | -10/Materials | Discovered new exit (range 16) 168 | -10/Materials | Identified exit to Mines 487 | -10/Materials | Build established: Mutant 550 | -10/Materials | Discovered new exit (range 8) 952 | -10/Materials | Entered Mines 1248 | -10/Mines | Core integrity fell below 50% 1260 | -10/Mines | Core integrity fell below 20% 1267 | -10/Mines | Destroyed by G-47 Trooper with Particle Gun Last Messages --------------- 01245_ Overheating: Hcp. Storage Unit damaged (-25). 01245_ Overheating: Broken Lgt. Treads damaged (-15). 01245_ Laser Drill disabled. 01245_ Beam Rifle destroyed. 01247_ Overheating: Core damaged (-47). 01249_ Overheating: Broken Lgt. Treads damaged (-2). 01249_ Overheating: Beam Rifle damaged (-3). 01251_ Beam Rifle broken. 01251_ Overheating: Short circuit. 01251_ Acquired 40 matter. 01252_ Overheating: Lgt. Treads damaged (-29). 01252_ System corrupted: Component data lost. 01253_ Broken Lgt. Treads destroyed. 01255_ Broken Beam Rifle destroyed. 01256_ Lgt. Treads broken. 01256_ Overheating: Short circuit. 01257_ Slammed into G-47 Trooper. 01258_ Overheating: Core damaged (-42). 01264_ K-01 Serf collects debris. 01264_ Slammed into G-47 Trooper. Map ----- +----------------------------------------------------+ | ???????????????????????????????????????? | | ???????????????????????????????????????? | | ???????????????????????????????????????? | | ???????????????????????????????????????? | | ???????????????????????????????????????? | | ???????????????????????????????????????? | | ???????????????????????????????????????? | | ???????????????????????????????????????? | | ???????????????????????????????????????? | | ?????????????# #???????????????????????? | | ???????????## ??????????????????????? | | ??????????## ??????????????????????? | | ??????????# ???????????????????????? | | ??????????? ???????????????????????? | | ??????????? ???????##??????????????? | | ??????????? ??????? ??????????????? | | ???????????? ???????# ??????????????? | | ???????????? #???????# ######????????? | | ????????????# #??????## #????????? | | ????????????# #??????? """ #????????? | | #???????????# #??????? "" #????????? | | #??????????# #???????#k """ #????????? | | #???####### ######### #????????? | | #### # "" #????????? | | """ g""" #????????? | | """ ############%@""" #????????? | | # ### """ #??????????# #????????? | | #?# #?# #??????????# #????????? | | ###%#?#######??????????# #????????? | | #??????????????????# #????????? | | #####??????????????????########????????? | | ???????????????????????????????????????? | | ???????????????????????????????????????? | | ???????????????????????????????????????? | | ???????????????????????????????????????? | | ???????????????????????????????????????? | | ???????????????????????????????????????? | | ???????????????????????????????????????? | | | | | | | | | | | | | | | | | | | | | | | | | +----------------------------------------------------+ Best States ------------- Heat Dissipation 25 Energy Generation 10 Energy Capacity 125 Matter Stores 300 Matter Capacity 300 Sight Range 16 Terrain Scan Density 10 Additional Mass Support 6 Armor Coverage 150 Evasion (%) 63 Recoil Reduction 2 Item Schematics ----------------- None Robot Schematics ------------------ None Fabricated ------------ Nothing Alien Tech Used ----------------- None Achievements -------------- None Challenges ------------ None Game ------ Seed AdvancedDynamicTorch Manual? 0 Play Time 00:07:11 Cumulative 450.5 hours Start 2022.01.27 @ 17:03:02 End 2022.01.27 @ 17:09:55 Sessions 1 Manual Loads 0 Difficulty Rogue Special Mode None Game No. 440 Rogue 225 Adventurer 112 Explorer 103 Win Type - Total 30 Types 22/0/5/2/0/0/0/1/0 Lore% 86 Gallery% 90 Achievement% 80 Wizard Run 0 Options --------- ASCII 1 Keyboard 0 Movement Vi Keybinds 1 Fullscreen 2 Font 18/SmallcapsGlow Map View 76x50 Tactical HUD 1 Map Filters NONE Filters NONE Steam 1 RUN: 95828ddc-a303-45e8-a1de-3b39b0fa7eac